Cogmind - Beta 15 @@@ ROGUE MODE // 2025.10.08 @ 17:33:48 Player: Maddymakesgames Result: Destroyed by G-50 Soldier with Heavy Laser Performance ------------- Evolutions (2) 1000 Regions Visited (4) 800 Robots Destroyed (25) 125 Value Destroyed (763) 763 Prototype IDs (0) 0 Alien Tech Used (0) 0 Bonus (0) 0 TOTAL SCORE: 2688 Bonus ------- None Cogmind --------- Core Integrity 0/550 Matter 184/300 Energy 49/100 System Corruption 0% Temperature Cool (84) Movement Core (50) Location -8/Materials Parts ------- > --- POWER (3) -------- (None) > --- PROPULSION (3) --- (None) > --- UTILITY (2) ------ Advanced Visual Processing Unit > --- WEAPON (3) ------- (None) > --- INVENTORY (5) ---- (None) Peak State ------------ > --- POWER ------------ Light Ion Engine > --- PROPULSION ------- Flight Unit Flight Unit VTOL Module > --- UTILITY ---------- Targeting Computer Targeting Computer > --- WEAPON ----------- Small Laser Beam Rifle High-powered Shotgun > --- INVENTORY -------- Light Treads Terrain Scanner Targeting Computer Rocket Launcher [Rating: 13] Favorites ----------- Power Ion Engine Engine Ion Engine Propulsion Light Treads Treads Light Treads Flight Unit Flight Unit Utility Targeting Computer Storage Small Storage Unit Processor Targeting Computer Weapon Assault Rifle Energy Gun EM Pulse Gun Ballistic Gun Assault Rifle Launcher Rocket Launcher Build | -11 -10 -10 -9 -8 ------- Run | Yrd Mat Min Mat Mat Slots Evolved 4 | . . . 2 2 Power 2 | . . . 1 1 Propulsion 1 | . . . 1 . Utility . | . . . . . Weapon 1 | . . . . 1 Parts Attached 23 | 6 2 . 8 7 Power 3 | 1 . . 1 1 Engine 3 | 1 . . 1 1 Core . | . . . . . Reactor . | . . . . . Propulsion 8 | 2 . . 4 2 Treads 3 | 2 . . 1 . Leg . | . . . . . Wheel . | . . . . . Hover . | . . . . . Flight 5 | . . . 3 2 Utility 5 | 1 2 . . 2 Device . | . . . . . Storage 1 | 1 . . . . Processor 4 | . 2 . . 2 Hackware . | . . . . . Protection . | . . . . . Artifact . | . . . . . Weapon 7 | 2 . . 3 2 Energy Gun 4 | 1 . . 3 . Energy Cannon . | . . . . . Ballistic Gun 2 | 1 . . . 1 Ballistic Cannon . | . . . . . Launcher 1 | . . . . 1 Special Weapon . | . . . . . Impact Weapon . | . . . . . Slashing Weapon . | . . . . . Piercing Weapon . | . . . . . Special Melee Weapon . | . . . . . Unidentified Prototypes . | . . . . . Parts Lost 19 | . . . 7 12 Power 3 | . . . 1 2 Propulsion 8 | . . . 3 5 Utility 2 | . . . . 2 Weapon 6 | . . . 3 3 Highest Loss Streak 9 | . . . 3 9 To Critical Strikes . | . . . . . Average Backups 3 | 1 4 5 4 4 Power . | . . 1 . . Propulsion . | . . . . . Utility 1 | . 1 2 2 2 Weapon 1 | . 1 2 1 1 Tool/Special . | . . . . . Unused Backups 5 | . 2 . 2 1 Power . | . . . . . Propulsion 1 | . 1 . . . Utility 2 | . 1 . . 1 Weapon 2 | . . . 2 . Tool/Special . | . . . . . Average Slot Usage (%) 87 | . 97 100 76 53 Engine 12 | . 14 14 12 7 Treads 21 | . 28 28 16 2 Flight 3 | . . . 5 16 Storage 2 | . 9 . . . Processor 22 | . 16 28 22 13 Energy Gun 13 | . 14 14 13 12 Ballistic Gun 10 | . 14 14 6 1 Peak Build Rating 13 | 6 7 7 10 13 Average Rating 6 | 5 6 7 7 8 On Entrance 5 | . 6 7 7 8 Naked Turns 3 | . . . . 3 Heaviest Build 14 | 14 14 9 13 10 Greatest Support 40 | 40 40 40 40 20 Greatest Overweight (x) 4 | . . . 4 . Average Overweight (x) . | . . . . . Largest Inventory Capacity 8 | 8 8 5 5 5 Average Capacity 6 | 7 7 5 5 5 Most Carried 8 | 2 8 5 5 5 Average Carried 3 | 1 4 5 4 4 Final Capacity 8 | 8 5 5 5 5 Final Carried 5 | 2 5 5 4 . Class Distribution -------------------- 97% | Mutant Dominant Class ---------------- Mutant | -10/Materials Mutant | -10/Mines Mutant | -9/Materials Mutant | -8/Materials Resources | -11 -10 -10 -9 -8 ----------- Run | Yrd Mat Min Mat Mat Matter Collected 461 | 218 47 39 157 . Remotely . | . . . . . Salvage Created 843 | . 77 . 554 212 Parts 47 | . 7 . 31 9 Haulers Intercepted . | . . . . . Recyclers Shooed . | . . . . . Parts Field Recycled . | . . . . . Retrieved Matter . | . . . . . Parts Self-Destructed . | . . . . . Prevented . | . . . . . Kills | -11 -10 -10 -9 -8 ------- Run | Yrd Mat Min Mat Mat Combat Hostiles Destroyed 22 | . 3 . 13 6 Guns 15 | . 3 . 11 1 AOE 6 | . . . 1 5 Classes Destroyed 6 | . 2 . 3 1 Tunneler 1 | . . . 1 . Watcher 2 | . 1 . 1 . Swarmer 6 | . 3 . 3 . Grunt 12 | . . . 8 4 Brawler 1 | . . . . 1 Sentry 3 | . . . 2 1 Best Kill Streak 5 | . 3 . 5 5 Combat Bots Only 5 | . 3 . 5 5 Max Kills in Single Turn 3 | . 1 . 1 3 Gunslinging . | . . . . . Exploded 3 | . . . 1 3 Melee . | . . . . . Uniques/NPCs Destroyed . | . . . . . Combat | -11 -10 -10 -9 -8 -------- Run | Yrd Mat Min Mat Mat Hostile Shots Fired 220 | . 20 . 105 95 Missed 70 | . 3 . 33 34 Hits 150 | . 17 . 72 61 Projectile 150 | . 17 . 72 61 Critical Strikes 2 | . . . . 2 Damage Taken 1963 | . 132 . 881 950 Core 777 | . 7 . 214 556 Absorbed by Shields . | . . . . . Core Remaining (%) 81 | 100 . 97 46 . Volleys Fired 85 | . 8 . 62 15 Largest 3 | . 2 . 2 3 Hottest 121 | . 60 . 101 121 Shots Fired 122 | . 16 . 81 25 Gun 118 | . 16 . 81 21 Cannon . | . . . . . Launcher 4 | . . . . 4 Special . | . . . . . Kinetic 41 | . 8 . 30 3 Thermal 38 | . . . 20 18 Explosive 4 | . . . . 4 Electromagnetic 39 | . 8 . 31 . Robot Hit Streak 20 | . 5 . 20 12 Robot Miss Streak 2 | . 1 . 2 1 Penetration Max . | . . . . . Secondary Targets 2 | . 2 . . . Max Gunslinging Chain 1 | . 1 . . . Shots Hit Robots 96 | . 11 . 67 18 Core Hits 43 | . 4 . 22 17 Critical Kills . | . . . . . Critical Parts Destroyed . | . . . . . Critical Strikes 2 | . . . 1 1 Burn 1 | . . . . 1 Corrupt 1 | . . . 1 . Melee Attacks . | . . . . . Impact . | . . . . . Slashing . | . . . . . Piercing . | . . . . . Sneak Attacks . | . . . . . Combat Hostiles . | . . . . . Follow-up Attacks . | . . . . . Damage Inflicted 2061 | . 158 . 1051 852 Guns 1326 | . 158 . 955 213 Cannons . | . . . . . Explosions 731 | . . . 92 639 Melee . | . . . . . Ramming 4 | . . . 4 . Kinetic 403 | . 39 . 292 72 Thermal 465 | . . . 324 141 Explosive 639 | . . . . 639 Electromagnetic 550 | . 119 . 431 . Impact . | . . . . . Slashing . | . . . . . Piercing . | . . . . . Highest Corruption . | . . . . . Average Corruption . | . . . . . Corruption Purged . | . . . . . Corruption Blocked . | . . . . . Overload Shots . | . . . . . Overflow Damage 19 | . . . 15 4 Projectiles . | . . . . . Explosions 19 | . . . 15 4 Melee . | . . . . . Knockbacks . | . . . . . Impact . | . . . . . Kinetic . | . . . . . Secondary . | . . . . . Self-Inflicted Damage 11 | . . . 11 . Shots 1 | . . . 1 . Rammed 1 | . . . 1 . Targets Rammed 1 | . . . 1 . Kicked . | . . . . . Crushed . | . . . . . Highest Temperature 171 | . . . 138 171 Average Temperature 49 | . . . 36 77 Received Heat Transfer 831 | . . . 336 495 Siege Activations . | . . . . . Martial Activations . | . . . . . Shielding Activations . | . . . . . Robots Disrupted . | . . . . . Combat Hostiles . | . . . . . Robots Corrupted 1 | . . . 1 . Combat Hostiles 1 | . . . 1 . Parts Fried 3 | . 1 . 2 . Impact Corruptions . | . . . . . Robots Melted . | . . . . . Combat Hostiles . | . . . . . Parts Melted 3 | . . . 1 2 Heat Transferred 1102 | . . . 692 410 Parts Sabotaged . | . . . . . Parts Stolen . | . . . . . Parts Stripped . | . . . . . Power Chain Reactions 2 | . . . 2 . Alert | -11 -10 -10 -9 -8 ------- Run | Yrd Mat Min Mat Mat Maximum Alert Level 1 | . . . . 1 Low Security (%) 99 | 100 100 100 100 91 Level 1 . | . . . . 8 Level 2 . | . . . . . Level 3 . | . . . . . Level 4 . | . . . . . Level 5 . | . . . . . High Security . | . . . . . Max Security . | . . . . . Peak Influence 244 | . 60 . 123 244 Initial 30 | . . . . 30 Average 19 | . 6 . 55 63 Influence Increases 827 | . 84 . 396 347 Destroy 0b10 Robot/C 440 | . 60 . 260 120 Destroy 0b10 Robot/NC 15 | . 5 . 10 . Destroy Leader 124 | . 12 . 82 30 Successful Hack 12 | . 7 . 5 . Disable Machine 30 | . . . 15 15 Destroy Structure 41 | . . . 9 32 Partial Spotted 15 | . . . . 15 Lose Combat Pursuer 150 | . . . 15 135 Influence Decreases 645 | . 84 . 323 238 Entered New Map 43 | . . . . 43 Time Decay 412 | . 84 . 253 75 Lost Part 190 | . . . 70 120 Squads Dispatched 8 | . 1 . 5 2 Investigation 4 | . . . 4 . Extermination . | . . . . . Reinforcement 4 | . 1 . 1 2 Assault . | . . . . . Garrison . | . . . . . Intercept . | . . . . . Searches Triggered . | . . . . . Construction Impeded . | . . . . . Haulers Reinforced . | . . . . . Active Scanning Responses . | . . . . . Cargo Convoy Interrupts . | . . . . . Stealth | -11 -10 -10 -9 -8 --------- Run | Yrd Mat Min Mat Mat Distress Signals 2 | . . . 1 1 Communications Jammed . | . . . . . Distress Signals . | . . . . . Times Spotted 62 | . 9 . 24 29 Peak Tracking Total 16 | . 4 . 9 16 Tactical Retreats 5 | . . . 1 4 Traps | -11 -10 -10 -9 -8 ------- Run | Yrd Mat Min Mat Mat Traps Triggered 2 | . . . 2 . Indirectly . | . . . . . Trap Hack Attempts . | . . . . . Triggered . | . . . . . Disarmed . | . . . . . Reprogrammed . | . . . . . Reused . | . . . . . Traps Extracted . | . . . . . Installed . | . . . . . Triggered . | . . . . . Machines | -11 -10 -10 -9 -8 ---------- Run | Yrd Mat Min Mat Mat Machines Disabled 2 | . . . 1 1 Max in Single Turn 1 | . . . 1 1 Machines Repaired . | . . . . . Machines Dismantled . | . . . . . Machines Sabotaged . | . . . . . Overloaded Fab Kills . | . . . . . Hacking | -11 -10 -10 -9 -8 --------- Run | Yrd Mat Min Mat Mat Machines Accessed 8 | . 3 . 4 1 Terminals 6 | . 2 . 3 1 Fabricators . | . . . . . Repair Stations . | . . . . . Recycling Units 2 | . 1 . 1 . Scanalyzers . | . . . . . Garrison Access . | . . . . . Total Hacks 29 | . 11 . 15 3 Successful 19 | . 8 . 8 3 Failed 10 | . 3 . 7 . Catastrophic 2 | . 1 . 1 . Database Lockouts . | . . . . . Manual 4 | . . . 4 . Terminals 26 | . 10 . 13 3 Fabricators . | . . . . . Repair Stations . | . . . . . Recycling Units 3 | . 1 . 2 . Scanalyzers . | . . . . . Garrison Access . | . . . . . Terminal Hacks 16 | . 7 . 6 3 Record 9 | . 4 . 4 1 Alert Level 4 | . 2 . 1 1 Investigation Status 1 | . . . . 1 Zone Layout 2 | . 1 . 1 . Fabricator Hacks . | . . . . . Repair Station Hacks . | . . . . . Recycling Unit Hacks 3 | . 1 . 2 . Report Inventory 2 | . 1 . 1 . Retrieve Components 1 | . . . 1 . Scanalyzer . | . . . . . Garrison Access Hacks . | . . . . . Unauthorized Hacks . | . . . . . Terminals . | . . . . . Fabricators . | . . . . . Repair Stations . | . . . . . Recycling Units . | . . . . . Scanalyzers . | . . . . . Garrison Access . | . . . . . Data Cores Recovered . | . . . . . Used . | . . . . . Hacking Detections 4 | . 1 . 3 . Full Trace Events 2 | . . . 2 . Feedback Events . | . . . . . Feedback Blocked . | . . . . . Robot Schematics Acquired . | . . . . . Robots Built . | . . . . . Authchips . | . . . . . Time . | . . . . . Total Robot Build Rating . | . . . . . Part Schematics Acquired . | . . . . . Parts Built . | . . . . . Authchips . | . . . . . Time . | . . . . . Total Part Build Rating . | . . . . . Parts Repaired . | . . . . . Time . | . . . . . Parts Recycled . | . . . . . Recycled Matter . | . . . . . Retrieved Matter . | . . . . . Retrieved Components 3 | . . . 3 . Parts Scanalyzed . | . . . . . Part Schematics Acquired . | . . . . . Parts Damaged . | . . . . . Bothacking | -11 -10 -10 -9 -8 ------------ Run | Yrd Mat Min Mat Mat Used RIF Installer . | . . . . . Robots Hacked . | . . . . . Non-combat . | . . . . . Combat . | . . . . . Robot Hacks Applied . | . . . . . Relay Couplers Released . | . . . . . Fabnet Peak Effective % . | . . . . . Robots Rewired . | . . . . . Allies Hacked . | . . . . . Hacks Repelled . | . . . . . Allies | -11 -10 -10 -9 -8 -------- Run | Yrd Mat Min Mat Mat Total Allies . | . . . . . Largest Group . | . . . . . Highest-Rated Group . | . . . . . Highest-Rated Ally . | . . . . . Total Orders . | . . . . . Ally Attacks . | . . . . . Total Damage . | . . . . . Kills . | . . . . . Allies Corrupted . | . . . . . Allies Melted . | . . . . . Intel | -11 -10 -10 -9 -8 ------- Run | Yrd Mat Min Mat Mat Active Infowar (turns) 7 | . . . . 7 Optics 7 | . . . . 7 Robot Analysis Total . | . . . . . Derelict Logs Recovered 2 | . . 2 . . Drone Launches . | . . . . . Drone Recoveries . | . . . . . Exploration | -11 -10 -10 -9 -8 ------------- Run | Yrd Mat Min Mat Mat Turns Passed 3474 | 901 568 895 942 168 Spaces Moved 1592 | 214 330 344 448 256 Core 20 | 3 . . 11 6 Treads 1305 | 211 330 344 419 1 Legs . | . . . . . Wheels . | . . . . . Hover . | . . . . . Flight 267 | . . . 18 249 Fastest Speed 32 | 50 160 160 114 32 Average Speed 140 | 158 160 160 160 39 Slowest Speed 250 | 160 160 160 250 160 Overloaded Moves . | . . . . . Propulsion Burnouts . | . . . . . Robots Hopped 1 | . . . . 1 Potential Cave-ins . | . . . . . Cave-ins Triggered . | . . . . . Exploration Rate (%) 34 | 17 37 57 36 26 Regions Visited 4 Branch Regions 1 Pre-discovered Areas 1 | . . 1 . . Known Exits Taken . | . . . . . Unknown Exits Taken 4 | 1 1 1 1 . Scrap Searched 1 | . . 1 . . Spaces Dug . | . . . . . Terrain Destroyed 38 | . . . 7 31 Melee . | . . . . . Projectile . | . . . . . AOE 38 | . . . 7 31 Terrain Rammed . | . . . . . Walls Destroyed . | . . . . . Machines Disabled . | . . . . . Actions | -11 -10 -10 -9 -8 --------- Run | Yrd Mat Min Mat Mat Total 2712 | 773 357 689 592 301 Wait 962 | 552 . 346 56 8 Move 1586 | 213 329 343 447 254 Hop 1 | . . . . 1 Pick Up 24 | 2 11 . 6 5 Fast Attach 15 | 6 1 . 6 2 Attach 13 | . 1 . 4 8 Detach 6 | . . . 3 3 Swap 2 | . . . 1 1 Drop 17 | . 7 . 6 4 Fire 85 | . 8 . 62 15 Melee . | . . . . . Ram 1 | . . . 1 . Kick . | . . . . . Crush . | . . . . . Escape Stasis . | . . . . . Rewire . | . . . . . Trap . | . . . . . Miscellaneous . | . . . . . Route ------- -11/Scrapyard -10/Materials (discovered 2 exits: [*Min] / [*Sub]) -10/Mines (discovered 2 exits: *Mat / [*Exi]) -9/Materials -8/Materials History --------- Turn | Location | Event 33 | -11/Scrapyard | Discovered new exit (range 16) 902 | -11/Scrapyard | Entered Materials 903 | -10/Materials | Build established: Mutant 903 | -10/Materials | Met a group of wandering Federalists 922 | -10/Materials | Discovered new exit (range 8) 1411 | -10/Materials | Discovered new exit (range 11) 1470 | -10/Materials | Entered Mines 1670 | -10/Mines | Learned location of Zion (-7) 1694 | -10/Mines | Learned Materials emergency access door positions 2212 | -10/Mines | Discovered new exit (range 16) 2298 | -10/Mines | Deemed a non-threat by the Exiles lab entrance 2300 | -10/Mines | Discovered new exit (range 5) 2365 | -10/Mines | Entered Materials 2365 | -9/Materials | Evolved 2 slots: Power x1, Propulsion x1 2890 | -9/Materials | Lost 3 parts (2n1w) 3007 | -9/Materials | Core integrity fell below 50% 3290 | -9/Materials | Discovered new exit (range 8) 3307 | -9/Materials | Entered another Materials area 3307 | -8/Materials | Evolved 2 slots: Power x1, Weapon x1 3466 | -8/Materials | Core integrity fell below 50% 3471 | -8/Materials | Core integrity fell below 20% 3475 | -8/Materials | Destroyed by G-50 Soldier with Heavy Laser Last Messages --------------- G-47 Trooper destroyed. Flight Unit destroyed. G-47 Trooper destroyed. Destroyed Lgt. Nuclear Core. G-47 Trooper destroyed. B-36 Bruiser destroyed. Targeting Computer destroyed. Imp. Ion Engine destroyed. Critical hit (Burn: +37). Rocket Launcher destroyed. Sml. Laser destroyed. Critical hit (Burn: +37). G-50 Soldier suffers critical hit (Burn). Lgt. Treads destroyed. Targeting Computer destroyed. Beam Rifle destroyed. G-50 Soldier suffers critical hit (Burn). S-10 Pest destroyed. G-47 Trooper destroyed. U-05 Engineer builds a Wall. Map ----- +----------------------------------------------------+ | | | | | | | | | | | | | | | | | | | | | | | | | | | | | | | ?????????????????????????????????????????????????? | | ?????????????????????????????????????????????????? | | ?????????????????????????????????????????????????? | | ?????????????????????????????????????????????????? | | ?????????????????????????????????????????????????? | | ?????????????????????????????????????????????????? | | ????????????????????????#######??????????????????? | | ????????????????????????# ##?????????????????? | | ??????????????????####### % #?????????????????? | | ??????????????????# g #?????????????????? | | ??????????????????# ! @ #?????????????????? | | ??????????????????# ! #???????????? | | ??????????????????# "Y" # =% #???????????? | | ??????????????????# """ [% [**#???????????? | | ??????????????????+ # %*= [* #???????????? | | ??????????????????######## g% ** #########???? | | ????????????? g g # ????? | | ????????????????????###### # # ????? | | ?????????????????????????######gY # """ ????# | | ??????????????????????????#== # # """""???? | | ??????????????????????????#== ###### """"" ??? | | ??????????????????????????#!! + """"" #?# | | ??????????????????????????#!! ###### """ #?# | | ??????????????????????????#]] #????# #?# | | ??????????????????????????#]] #????#+#########?# | | ??????????????????????????##### ###### ########### | | ?????????????????????????????# | | ?????????????????????????????# | | ?????????????????????????????# | | ?????????????????????????????# ################# | | ?????????????????????????????# #???????######### | | ?????????????????????????????# #???????# !# | | ?????????????????? #####+##### ######### """ # | | ??????????????????? ## """ # | | ???????????????????? + """ + | +----------------------------------------------------+ Best States ------------- Heat Dissipation 31 Energy Generation 15 Energy Capacity 275 Matter Stores 300 Matter Capacity 300 Sight Range 20 Terrain Scan Density 10 Evasion (%) 63 Targeting Accuracy 10 Recoil Reduction 2 Item Schematics ----------------- None Robot Schematics ------------------ None Fabricated ------------ Nothing Repaired ---------- Nothing Alien Tech Used ----------------- None Achievements -------------- None Challenges ------------ None Game ------ Seed HybridRainbowChip Manual? 0 Play Time 00:39:18 Cumulative 3.6 hours Start 2025.10.08 @ 14:47:26 End 2025.10.08 @ 17:33:48 Sessions 3 Manual Loads 0 Difficulty Rogue Special Mode None Game No. 9 Rogue 9 Adventurer 0 Explorer 0 Win Type - Total 0 Types 0/0/0/0/0/0/0/0/0/0 Lore% 1 Gallery% 7 Achievement% 8 Wizard Run 0 Options --------- Layout 1 ASCII 0 Keyboard 0 Movement Arrows Keybinds 0 Fullscreen 1 Font 28/SmallcapsGlow Map View 50x43 Zoom Use 0% Tactical HUD 0 Map Filters NONE Filters NONE Steam 1 RUN: cb665cff-5872-4593-babb-be650b1aa01b